fUSD/lending_fUSD_20250804
["ID","MTS","AMOUNT","RATE_DAILY","PERIOD"]
[377195306,1754284237932,-2000.0,0.00039479,2]
[377195308,1754284237943,-317.94362501,0.00039479,2]
[377195316,1754284238026,-10484.69217248,0.00039479,2]
[377195317,1754284238036,-866.84,0.00039479,30]
[377195318,1754284238045,-164.33,0.00039479,2]
[377195319,1754284238055,-1048.51,0.00039479,120]
[377195320,1754284238066,-588.89,0.00039479,2]
[377195321,1754284238077,-169.91,0.00039479,2]
[377195322,1754284238098,-667.3387647,0.0003979,2]
[377195366,1754284238790,-1486.57680025,0.0003979,2]
[377195367,1754284238800,-500.0,0.00039918,7]
[377195368,1754284238809,-167.99,0.00040663,2]
[377195369,1754284238820,-291.18,0.0004103,2]
[377195370,1754284238830,-200.0,0.00041096,20]
[377195371,1754284238840,-200.0,0.00041096,20]
[377195372,1754284238850,-200.0,0.00041096,20]
[377195373,1754284238859,-153.71,0.0004158,30]
[377195374,1754284238869,-442.37506404,0.00041926,2]
[377195375,1754284238879,-150.0,0.000423,2]
[377195376,1754284238888,-431.77060262,0.00042547,2]
[377195377,1754284238898,-290.66533039,0.00042745,2]
[377195378,1754284238907,-291.18,0.00042761,120]
[377195379,1754284238917,-506.39762036,0.00042794,2]
[377195380,1754284238926,-157.0,0.00043,33]
[377195381,1754284238938,-581.02463809,0.00043041,2]
[377195382,1754284238947,-1346.97687335,0.00043282,2]
[377195383,1754284238957,-655.65165583,0.00043287,2]
[377195384,1754284238967,-169.91,0.00043426,2]
[377195385,1754284238977,-150.0,0.00043478,2]
[377195386,1754284238987,-515.0,0.00043481,10]
[377195387,1754284238998,-3344.38,0.0004349,120]
[377195388,1754284239008,-1685.76,0.00043513,2]
[377195389,1754284239017,-2566.84,0.00043513,2]
[377195390,1754284239027,-338.99,0.00043513,2]
[377195391,1754284239036,-8165.72,0.00043513,2]
[377195392,1754284239046,-9999.99,0.00043513,2]
[377195393,1754284239055,-499.99,0.00043513,2]
[377195394,1754284239066,-9999.99,0.00043513,2]
[377195395,1754284239077,-852.64,0.00043513,2]
[377195396,1754284239086,-150.99,0.00043513,2]
[377195397,1754284239096,-150.99,0.00043513,30]
[377195398,1754284239105,-1716.36,0.00043513,30]
[377195399,1754284239115,-9999.99,0.00043513,2]
[377195400,1754284239124,-730.27867357,0.00043534,2]
[377195401,1754284239134,-666.0,0.00043586,3]
[377195402,1754284239143,-250.0,0.00043674,2]
[377195403,1754284239152,-2751.0,0.00043745,120]
[377195404,1754284239162,-804.90569131,0.00043781,2]
[377195405,1754284239414,-755.6,0.00043831,2]
[377195406,1754284239426,-423.0,0.00043913,2]
[377195407,1754284239436,-879.53270904,0.00044028,2]
[377195408,1754284239446,-230.2184,0.00044219,2]
[377195409,1754284239457,-2104.962,0.00044219,2]
[377195410,1754284239468,-954.15972678,0.00044275,2]
[377195411,1754284239478,-2310.02466824,0.00044283,2]
[377195412,1754284239488,-1000.0,0.00044413,2]
[377195413,1754284239498,-291.18,0.00044491,120]
[377195414,1754284239507,-154.45,0.00044521,2]
[377195415,1754284239517,-1028.78674452,0.00044522,2]
[377195416,1754284239527,-1103.41376225,0.00044768,2]
[377195417,1754284239537,-150.0,0.000448,12]
[377195418,1754284239546,-151.0,0.00044801,14]
[377195419,1754284239555,-151.0,0.00044801,14]
[377195420,1754284239565,-226.776309,0.00044801,14]
[377195421,1754284239575,-226.776309,0.00044801,14]
[377195422,1754284239584,-157.0,0.00045,61]
[377195423,1754284239595,-1178.04077999,0.00045015,2]
[377195424,1754284239604,-153.71,0.00045045,120]
[377195425,1754284239613,-176.25,0.00045209,120]
[377195426,1754284239623,-1252.66779773,0.00045262,2]
[377195427,1754284239632,-1077.2237,0.0004539,2]
[377195428,1754284239641,-630.7462,0.0004539,2]
[377195429,1754284239651,-9094.4662179,0.0004549,30]
[377195430,1754284239660,-1327.29481546,0.00045509,2]
[377195431,1754284239670,-226.776309,0.00045516,14]
[377195432,1754284239679,-226.776309,0.00045516,14]
[377195433,1754284239688,-515.0,0.00045546,10]
[377195434,1754284239698,-151.0,0.00045675,14]
[377195435,1754284239707,-151.0,0.00045675,14]
[377195436,1754284239716,-153.229771,0.00045675,14]
[377195437,1754284239726,-151.0,0.00045685,14]
[377195438,1754284239736,-1401.9218332,0.00045756,2]
[377195439,1754284239747,-151.0,0.00045882,14]
[377195440,1754284239757,-151.0,0.00045882,14]
[377195441,1754284239767,-151.0,0.000459,14]
[377195442,1754284239778,-154.62499296,0.000459,120]
[377195443,1754284239790,-151.0,0.0004599,14]
[377195444,1754284239800,-151.0,0.0004599,14]
[377195445,1754284239810,-151.0,0.0004599,14]
[377195446,1754284239820,-151.0,0.0004599,14]
[377195447,1754284239832,-226.776309,0.00045999,14]
[377195448,1754284239843,-226.776309,0.00045999,14]
[377195450,1754284239853,-1476.54885094,0.00046003,2]
[377195451,1754284239863,-1000.0,0.00046027,120]
[377195452,1754284239873,-440.0,0.00046027,120]
[377195453,1754284239883,-600.79900213,0.0004607,120]
[377195454,1754284239892,-1000.0,0.000461,7]
[377195455,1754284239902,-291.18,0.00046222,120]
[377195456,1754284239911,-1551.17586868,0.00046249,2]
[377195457,1754284239921,-2500.0,0.00046292,2]
[377195459,1754284239931,-1202.91,0.00046293,120]
[377195460,1754284239941,-1179.29,0.00046293,120]
[377195461,1754284239951,-1179.29,0.00046293,120]
[377195462,1754284239963,-1179.29,0.00046293,120]
[377195463,1754284239973,-1179.29,0.00046293,120]
[377195464,1754284239985,-1177.94,0.00046293,120]
[377195465,1754284239994,-151.0,0.0004637,14]
[377195466,1754284240004,-151.0,0.0004637,14]
[377195467,1754284240014,-151.0,0.0004637,14]
[377195468,1754284240023,-226.776309,0.0004639,14]
[377195469,1754284240032,-226.776309,0.0004639,14]
[377195470,1754284240042,-288.13411558,0.000464,14]
[377195471,1754284240052,-151.0,0.000464,14]
[377195472,1754284240061,-151.0,0.000464,14]
[377195473,1754284240070,-151.0,0.000464,14]
[377195474,1754284240080,-1625.80288641,0.00046496,2]
[377195475,1754284240090,-1700.42990415,0.00046743,2]
[377195476,1754284240099,-1523.26742213,0.00046799,15]
[377195477,1754284240109,-963.22546012,0.000468,30]
[377195478,1754284240118,-1000.0,0.000468,2]
[377195479,1754284240128,-1523.26742206,0.0004681,15]
[377195480,1754284240139,-1523.26742206,0.00046821,15]
[377195481,1754284240149,-1523.26742206,0.00046833,15]
[377195482,1754284240159,-1523.26742206,0.00046844,15]
[377195483,1754284240168,-1523.26742206,0.00046855,15]
[377195484,1754284240178,-1523.26742206,0.00046866,15]
[377195485,1754284240187,-1523.26742206,0.00046878,15]
[377195486,1754284240197,-1523.26742206,0.00046889,15]
[377195487,1754284240207,-170.50037115,0.0004689,15]
[377195488,1754284240216,-500.0,0.00046899,120]
[377195489,1754284240226,-500.0,0.00046899,120]
[377195490,1754284240235,-564.31441995,0.00046899,120]
[377195491,1754284240244,-319.21468529,0.00046899,31]
[377195492,1754284240254,-500.0,0.00046899,120]
[377195493,1754284240264,-500.0,0.00046899,120]
[377195494,1754284240273,-500.0,0.00046899,120]
[377195495,1754284240282,-500.0,0.00046899,120]
[377195496,1754284240292,-205.33854001,0.00046899,120]
[377195497,1754284240301,-500.0,0.00046899,120]
[377195498,1754284240310,-500.0,0.00046899,120]
[377195499,1754284240319,-185.49777865,0.00046899,120]
[377195500,1754284240329,-599.51454291,0.00046899,120]
[377195501,1754284240338,-500.0,0.00046899,120]
[377195502,1754284240347,-500.0,0.00046899,120]
[377195503,1754284240357,-500.0,0.00046899,120]
[377195504,1754284240366,-500.0,0.00046899,120]
[377195505,1754284240375,-500.0,0.00046899,120]
[377195506,1754284240385,-500.0,0.00046899,120]
[377195507,1754284240395,-500.0,0.00046899,120]
[377195508,1754284240404,-500.0,0.00046899,120]
[377195509,1754284240413,-500.0,0.00046899,120]
[377195510,1754284240423,-500.0,0.00046899,120]
[377195511,1754284240432,-500.0,0.00046899,120]
[377195512,1754284240441,-500.0,0.00046899,120]
[377195513,1754284240451,-500.0,0.00046899,120]
[377195514,1754284240460,-190.598473,0.000469,14]
[377195515,1754284240469,-226.776309,0.000469,14]
[377195516,1754284240478,-226.776309,0.000469,14]
[377195517,1754284240488,-5000.0,0.000469,120]
[377195518,1754284240497,-88888.0,0.000469,120]
[377195519,1754284240507,-1070.0,0.000469,7]
[377195520,1754284240517,-2812.22604966,0.000469,15]
[377195521,1754284240526,-157.38580759,0.000469,2]
[377195522,1754284240536,-20038.4841,0.000469,120]
[377195523,1754284240545,-1523.26742206,0.000469,15]
[377195524,1754284240555,-13054.47176489,0.000469,2]
[377195525,1754284240564,-172.61931634,0.000469,2]
[377195526,1754284240574,-6563.0,0.00046959,120]
[377195527,1754284240584,-35786.0,0.00046959,120]
[377195528,1754284240593,-504.40113976,0.00046973,10]
[377195529,1754284240602,-503.40573836,0.00046973,10]
[377195530,1754284240612,-500.0,0.00046973,10]
[377195531,1754284240621,-175.14834869,0.00046973,10]
[377195532,1754284240630,-500.0,0.00046973,10]
[377195533,1754284240641,-11415.172035,0.0004698,3]
[377195534,1754284240655,-151.0,0.00046982,14]
[377195535,1754284240672,-150.0,0.00046987,3]
[377195536,1754284240682,-102736.548315,0.0004699,3]
[377195537,1754284240693,-182642.752561,0.0004699,3]
[377195538,1754284240704,-57947.3177179,0.0004699,3]
[377195539,1754284240715,-1775.05692188,0.0004699,2]
[377195540,1754284240726,-1000.0,0.00046999,2]
[377195541,1754284240736,-180442.8350338,0.00047,31]
[377195542,1754284240746,-18181.98493287,0.00047,61]
[377195543,1754284240758,-2888644.53438663,0.00047,10]
[377195544,1754284242002,-15927.81397682,0.00047,10]
[377195545,1754284242014,-7580.1464806,0.00047,10]
[377195546,1754284242043,-168196.54945398,0.00047,10]
[377195548,1754284243339,-1530.57524394,0.00047,10]
[377195549,1754284243363,-4049.0,0.00047,10]
[377195550,1754284243377,-3359.36422468,0.00047,10]
[377195551,1754284243472,-540686.01038352,0.00047,10]
[377195552,1754284243503,-5396.77076126,0.00047,10]
[377195553,1754284243604,-5453.40000082,0.00047,10]
[377195560,1754284245985,-2410.33831613,0.000469,120]
[377195561,1754284246237,-480.0,0.000469,120]
[377195562,1754284523255,2233.28765441,0.0001,2]
[377195565,1754284628168,153.85,0.00013699,2]
[377195567,1754284695091,10000.0,0.000301,120]
[377195583,1754285021835,1000.0,0.0001,120]
[377195584,1754285109461,6168.41234559,0.00019,2]
[377195585,1754285109499,3526.074,0.00019,2]
[377195586,1754285110660,8788.34295262,0.000154,2]
[377195587,1754285162997,8331.8761071,8e-05,2]
[377195588,1754285192164,347.037548,0.00018905,2]
[377195608,1754285408505,500.0,0.0003013,120]
[377195610,1754285432151,-83773.89718171,0.00019,2]
[377195611,1754285432163,-34871.7965011,0.00019,2]
[377195612,1754285432473,-617.9141118,0.00019,2]
[377195613,1754285432484,-1925.38685513,0.00019,2]
[377195669,1754285438790,-47125.88796404,0.00019,2]
[377195671,1754285438800,-5000.00248316,0.00024,5]
[377195673,1754285438809,-196.22397361,0.000245,2]
[377195675,1754285438819,-213.93839709,0.00026682,2]
[377195678,1754285438828,-600.0,0.00032131,7]
[377195680,1754285438838,-214.11,0.00032131,7]
[377195682,1754285438848,-1523.26742213,0.00034147,2]
[377195684,1754285438858,-153.85,0.00034247,2]
[377195686,1754285438868,-300.0,0.00035,14]
[377195688,1754285438878,-500.0,0.00035,7]
[377195690,1754285438887,-303.93,0.0003546,2]
[377195692,1754285438897,-1523.26742206,0.00035675,2]
[377195693,1754285438906,-500.0,0.00036114,15]
[377195695,1754285438915,-564.31441995,0.00036114,15]
[377195697,1754285438925,-500.0,0.00036114,15]
[377195700,1754285438934,-500.0,0.00036114,15]
[377195702,1754285438944,-500.0,0.00036114,15]
[377195703,1754285438954,-599.51454291,0.00036114,15]
[377195706,1754285438964,-205.33854001,0.00036114,15]
[377195707,1754285438973,-500.0,0.00036114,15]
[377195709,1754285438983,-500.0,0.00036114,15]
[377195711,1754285438992,-500.0,0.00036114,15]
[377195713,1754285439001,-500.0,0.00036114,15]
[377195715,1754285439011,-500.0,0.00036114,15]
[377195717,1754285439021,-500.0,0.00036114,15]
[377195719,1754285439030,-500.0,0.00036114,15]
[377195721,1754285439039,-500.0,0.00036114,15]
[377195723,1754285439049,-185.49777865,0.00036114,15]
[377195725,1754285439059,-500.0,0.00036114,15]
[377195727,1754285439069,-500.0,0.00036114,15]
[377195730,1754285439078,-500.0,0.00036114,15]
[377195731,1754285439088,-500.0,0.00036114,15]
[377195734,1754285439098,-500.0,0.00036114,15]
[377195736,1754285439107,-500.0,0.00036114,15]
[377195738,1754285439116,-500.0,0.00036114,15]
[377195740,1754285439126,-500.0,0.00036114,15]
[377195742,1754285439135,-319.21468529,0.00036114,15]
[377195743,1754285439144,-500.0,0.00036114,15]
[377195746,1754285439154,-11528.0,0.00036115,30]
[377195747,1754285439163,-441.33380377,0.00036115,2]
[377195750,1754285439173,-23204.80780502,0.00036115,2]
[377195752,1754285439182,-500.0,0.00036115,7]
[377195753,1754285439193,-1713.3999917,0.00036115,120]
[377195755,1754285439203,-717.38957091,0.00036115,120]
[377195758,1754285439212,-220.03881026,0.00036115,7]
[377195760,1754285439222,-500.0,0.00036115,10]
[377195762,1754285439231,-500.0,0.00036115,10]
[377195764,1754285439241,-500.0,0.000362,5]
[377195766,1754285439251,-500.0,0.00036307,7]
[377195768,1754285439262,-303.93,0.0003719,2]
[377195770,1754285439271,-1523.26742206,0.00037203,2]
[377195771,1754285439281,-153.72,0.00037355,2]
[377195773,1754285439291,-500.0,0.00037611,7]
[377195776,1754285439300,-1523.26742206,0.00038731,2]
[377195778,1754285439310,-303.93,0.0003892,2]
[377195780,1754285439319,-300.0,0.0004,14]
[377195782,1754285439328,-500.0,0.0004,14]
[377195783,1754285439337,-530.0,0.0004,120]
[377195785,1754285439346,-500.0,0.00040084,30]
[377195787,1754285439356,-1523.26742206,0.00040259,15]
[377195789,1754285439365,-250.0,0.00040462,2]
[377195791,1754285439374,-303.93,0.00040651,2]
[377195793,1754285439385,-1788.67138074,0.00041,7]
[377195795,1754285439394,-175.0,0.00041072,7]
[377195797,1754285439404,-153.72,0.00041091,30]
[377195800,1754285439414,-1523.26742206,0.00041788,15]
[377195802,1754285439423,-252.52,0.00041902,120]
[377195804,1754285439433,-76373.27,0.00041902,30]
[377195806,1754285439443,-300.0,0.00042,14]
[377195808,1754285439452,-500.0,0.00042071,30]
[377195809,1754285439462,-175.14834869,0.0004225,10]
[377195810,1754285439471,-502.40440746,0.0004225,10]
[377195811,1754285439480,-504.6690318,0.0004225,2]
[377195812,1754285439490,-500.0,0.0004225,10]
[377195813,1754285439499,-502.98137899,0.0004225,10]
[377195814,1754285439508,-500.4582055,0.0004225,10]
[377195815,1754285439518,-500.0,0.0004225,10]
[377195816,1754285439527,-150.0,0.000423,2]
[377195817,1754285439537,-303.93,0.00042381,120]
[377195818,1754285439547,-410.72889244,0.00042547,2]
[377195819,1754285439556,-500.0,0.00042563,30]
[377195820,1754285439565,-514.0,0.00042704,10]
[377195821,1754285439575,-370.188,0.00042707,65]
[377195822,1754285439584,-481.71907139,0.00042794,2]
[377195825,1754285439594,-500.0,0.00042986,2]
[377195827,1754285439604,-2627.9093222,0.00043,120]
[377195829,1754285439614,-552.70925033,0.00043041,2]
[377195831,1754285439628,-623.69942927,0.00043287,2]
[377195833,1754285439641,-1523.26742206,0.00043316,15]
[377195835,1754285439650,-172.88,0.00043328,30]
[377195837,1754285439659,-172.88,0.00043328,30]
[377195839,1754285439669,-172.88,0.00043328,30]
[377195841,1754285439678,-165.39,0.00043328,30]
[377195842,1754285439688,-165.39,0.00043328,30]
[377195844,1754285439697,-165.39,0.00043328,30]
[377195846,1754285439707,-1179.29,0.00043336,30]
[377195848,1754285439716,-1179.29,0.00043336,30]
[377195850,1754285439725,-1179.29,0.00043336,30]
[377195852,1754285439734,-1179.29,0.00043336,30]
[377195854,1754285439744,-1179.29,0.00043336,30]
[377195856,1754285439754,-1201.56,0.00043336,30]
[377195858,1754285439763,-694.68960821,0.00043534,2]
[377195860,1754285439773,-152.0,0.0004378,3]
[377195862,1754285439783,-765.67978715,0.00043781,2]
[377195864,1754285439792,-190.15,0.00043796,2]
[377195867,1754285439802,-502.3533705,0.000438,10]
[377195869,1754285439812,-427.36103189,0.000438,10]
[377195871,1754285439822,-500.0,0.000438,10]
[377195873,1754285439831,-500.0,0.000438,10]
[377195875,1754285439840,-547.1938562,0.00044,120]
[377195877,1754285439850,-836.66996609,0.00044028,2]
[377195879,1754285439859,-303.93,0.00044111,120]
[377195881,1754285439869,-907.66014503,0.00044275,2]
[377195883,1754285439878,-502.86458747,0.00044348,10]
[377195885,1754285439888,-164.19,0.00044473,120]
[377195887,1754285439897,-666.0,0.00044491,3]
[377195889,1754285439908,-978.65032397,0.00044522,2]
[377195891,1754285439918,-294.44,0.00044573,2]
[377195893,1754285439928,-172.08,0.00044573,2]
[377195895,1754285439939,-1000.0,0.00044573,2]
[377195897,1754285439948,-500.0,0.00044651,30]
[377195899,1754285439958,-431.94699816,0.00044744,15]
[377195901,1754285439967,-500.0,0.00044763,30]
[377195903,1754285439976,-1049.64050291,0.00044768,2]
[377195905,1754285439986,-153.72,0.00044826,30]
[377195907,1754285439995,-1523.26742206,0.00044844,15]
[377195909,1754285440004,-514.0,0.00044866,10]
[377195911,1754285440014,-500.0,0.0004499,120]
[377195913,1754285440023,-196.0,0.00045,90]
[377195915,1754285440033,-160.0,0.00045,90]
[377195917,1754285440043,-1120.63068185,0.00045015,2]
[377195919,1754285440053,-431.94699814,0.00045095,15]
[377195921,1754285440062,-600.79900213,0.00045119,120]
[377195923,1754285440072,-165.98989772,0.00045149,3]
[377195925,1754285440082,-13957.8787015,0.00045149,3]
[377195927,1754285440091,-23900.0,0.00045159,2]
[377195929,1754285440101,-158.81,0.00045159,2]
[377195931,1754285440110,-158.81,0.00045187,2]
[377195933,1754285440119,-158.81,0.00045216,2]
[377195935,1754285440128,-500.0,0.00045231,30]
[377195937,1754285440138,-158.81,0.00045244,2]
[377195939,1754285440147,-1191.62086079,0.00045262,2]
[377195941,1754285440157,-158.81,0.00045272,2]
[377195943,1754285440166,-158.81,0.000453,2]
[377195945,1754285440175,-158.81,0.00045329,2]
[377195947,1754285440185,-158.81,0.00045357,2]
[377195949,1754285440195,-158.81,0.00045385,2]
[377195951,1754285440204,-158.81,0.00045413,2]
[377195953,1754285440214,-158.81,0.00045441,2]
[377195955,1754285440223,-431.94699814,0.00045445,15]
[377195957,1754285440232,-158.81,0.0004547,2]
[377195959,1754285440242,-13957.8787015,0.0004548,3]
[377195961,1754285440252,-30000.0,0.0004549,30]
[377195963,1754285440261,-158.81,0.00045498,2]
[377195965,1754285440270,-4652.62623383,0.00045499,3]
[377195967,1754285440280,-1262.61103974,0.00045509,2]
[377195969,1754285440289,-158.81,0.00045526,2]
[377195971,1754285440299,-158.81,0.00045554,2]
[377195973,1754285440308,-158.81,0.00045583,2]
[377195975,1754285440318,-158.81,0.00045611,2]
[377195977,1754285440328,-196.0,0.00045685,90]
[377195979,1754285440337,-150.0,0.00045699,2]
[377195981,1754285440347,-932.79,0.00045741,30]
[377195983,1754285440356,-1635.54,0.00045741,30]
[377195985,1754285440366,-1333.60121868,0.00045756,2]
[377195987,1754285440375,-303.93,0.00045842,120]
[377195989,1754285440384,-10031.29768006,0.000459,30]
[377195991,1754285440394,-150.0,0.00045901,2]
[377195993,1754285440403,-177.8,0.0004591,2]
[377195995,1754285440413,-600.0,0.00045932,14]
[377195997,1754285440422,-214.11,0.00045932,14]
[377195999,1754285440431,-9305.25246766,0.0004599,3]
[377196001,1754285440441,-351.0152972,0.00046,120]
[377196003,1754285440451,-1929.21757971,0.00046,120]
[377196005,1754285440460,-11267.62097481,0.00046,10]
[377196007,1754285440470,-1404.59139762,0.00046003,2]
[377196009,1754285440479,-211.425049,0.00046023,2]
[377196011,1754285440489,-841.59890878,0.00046023,2]
[377196013,1754285440498,-1000.0,0.00046027,120]
[377196016,1754285440508,-440.0,0.00046027,120]
[377196018,1754285440518,-172.88,0.00046027,30]
[377196020,1754285440527,-537.09,0.00046027,30]
[377196022,1754285440537,-154.81,0.00046027,30]
[377196024,1754285440546,-150.73,0.00046027,30]
[377196026,1754285440556,-150.0,0.00046027,30]
[377196028,1754285440566,-165.39,0.00046027,30]
[377196030,1754285440575,-359.08,0.00046027,30]
[377196032,1754285440585,-150.0,0.00046027,30]
[377196034,1754285440594,-172.88,0.00046027,30]
[377196046,1754285440705,-537.09,0.00046027,30]
[377196048,1754285440715,-165.39,0.00046027,30]
[377196050,1754285440725,-172.88,0.00046027,30]
[377196052,1754285440733,-359.08,0.00046027,30]
[377196054,1754285440742,-165.39,0.00046027,30]
[377196056,1754285440752,-537.09,0.00046027,30]
[377196058,1754285440761,-150.0,0.00046027,30]
[377196060,1754285440770,-537.09,0.00046027,30]
[377196062,1754285440779,-165.39,0.00046027,30]
[377196064,1754285440789,-172.84,0.00046027,30]
[377196066,1754285440799,-150.0,0.00046027,30]
[377196068,1754285440809,-358.78,0.00046027,30]
[377196070,1754285440819,-1000.0,0.00046072,14]
[377196072,1754285440828,-150.0,0.00046166,2]
[377196074,1754285440837,-1475.58157656,0.00046249,2]
[377196076,1754285440847,-500.0,0.00046255,30]
[377196078,1754285440856,-150.0,0.00046271,2]
[377196080,1754285440865,-4652.62623383,0.00046275,3]
[377196082,1754285440875,-150.0,0.00046285,2]
[377196084,1754285440884,-150.0,0.00046298,2]
[377196086,1754285440893,-150.0,0.00046298,2]
[377196088,1754285440902,-306.57686188,0.00046306,14]
[377196089,1754285440911,-1653.34,0.00046341,30]
[377196090,1754285440921,-358.86,0.00046356,30]
[377196091,1754285440931,-1523.26742206,0.00046372,15]
[377196092,1754285440940,-150.0,0.00046391,12]
[377196093,1754285440949,-22422.04224559,0.000464,31]
[377196094,1754285440958,-170.18768609,0.00046425,15]
[377196095,1754285440968,-150.0,0.00046429,2]
[377196096,1754285440977,-547.23,0.00046478,30]
[377196097,1754285440986,-1546.5717555,0.00046496,2]
[377196098,1754285440996,-1200.0,0.000465,16]
[377196099,1754285441005,-766.0257,0.0004651,33]
[377196100,1754285441015,-271.5,0.00046575,120]
[377196101,1754285441024,-4652.62623383,0.0004659,3]
[377196102,1754285441033,-2500.0,0.000466,17]
[377196103,1754285441042,-1000.0,0.000466,2]
[377196104,1754285441052,-600.0,0.00046603,14]
[377196105,1754285441061,-214.11,0.00046603,14]
[377196106,1754285441071,-150.0,0.00046613,7]
[377196107,1754285441080,-150.0,0.00046645,7]
[377196109,1754285441089,-4652.62623383,0.0004669,3]
[377196111,1754285441098,-2986.12618346,0.000467,18]
[377196113,1754285441108,-3700.0,0.000467,17]
[377196114,1754285441117,-153.29,0.00046701,14]
[377196115,1754285441126,-839.45701024,0.00046714,2]
[377196116,1754285441136,-150.0,0.00046731,7]
[377196117,1754285441146,-1617.56193444,0.00046743,2]
[377196118,1754285441155,-150.0,0.00046781,7]
[377196119,1754285441164,-18610.5049353,0.0004679,3]
[377196120,1754285441173,-500.0,0.00046799,120]
[377196121,1754285441183,-34455.3984,0.000468,2]
[377196122,1754285441193,-5000.0,0.000468,17]
[377196123,1754285441202,-1313.72112197,0.000468,120]
[377196124,1754285441212,-363.86271134,0.000468,120]
[377196125,1754285441221,-1000.0,0.00046814,14]
[377196126,1754285441231,-4652.62623383,0.00046839,3]
[377196127,1754285441240,-330.28,0.00046849,30]
[377196128,1754285441249,-165.39,0.00046849,30]
[377196129,1754285441259,-165.39,0.00046849,30]
[377196130,1754285441268,-165.31,0.00046849,30]
[377196131,1754285441277,-4652.62623383,0.00046863,3]
[377196132,1754285441286,-4652.62623383,0.0004687,3]
[377196133,1754285441295,-38631.5451452,0.0004687,3]
[377196134,1754285441305,-503.40573836,0.00046873,10]
[377196135,1754285441314,-504.40113976,0.00046873,10]
[377196136,1754285441324,-456.86878018,0.00046873,5]
[377196137,1754285441334,-505.92018844,0.00046873,10]
[377196138,1754285441344,-500.0,0.00046873,10]
[377196139,1754285441354,-500.0,0.00046873,10]
[377196140,1754285441363,-500.0,0.00046873,10]
[377196141,1754285441373,-158.25371841,0.00046873,25]
[377196142,1754285441384,-97705.1509104,0.0004688,3]
[377196143,1754285441393,-43460.4882883,0.0004688,3]
[377196144,1754285441403,-183.55,0.00046884,14]
[377196145,1754285441413,-4828.94314315,0.0004689,3]
[377196146,1754285441422,-83747.2722089,0.0004689,3]
[377196147,1754285441431,-135210.408008,0.0004689,3]
[377196148,1754285441441,-5000.0,0.0004689,120]
[377196149,1754285441451,-415.09926474,0.0004689,30]
[377196150,1754285441461,-5702.9064,0.000469,2]
[377196151,1754285441470,-153.29,0.000469,14]
[377196152,1754285441480,-189842.5105,0.000469,2]
[377196153,1754285441489,-1000.0,0.000469,2]
[377196154,1754285441498,-88888.0,0.000469,120]
[377196155,1754285441508,-6200.0,0.000469,17]
[377196156,1754285441517,-1018.2055,0.000469,120]
[377196157,1754285441526,-1000.0,0.000469,120]
[377196158,1754285441535,-1000.0,0.000469,7]
[377196159,1754285441544,-170.18768608,0.00046917,15]
[377196160,1754285441553,-150.0,0.0004695,7]
[377196161,1754285441563,-35786.0,0.00046959,120]
[377196162,1754285441573,-6563.0,0.00046959,120]
[377196163,1754285441582,-501.0987251,0.00046973,10]
[377196164,1754285441591,-501.25218818,0.00046973,10]
[377196165,1754285441601,-500.0,0.00046973,10]
[377196166,1754285441610,-500.78520876,0.00046973,10]
[377196167,1754285441620,-607.50648958,0.00046973,10]
[377196168,1754285441639,-500.0,0.00046973,10]
[377196169,1754285441647,-264.99465784,0.00046973,10]
[377196170,1754285441657,-150.0,0.00046973,3]